fUST/lending_fUST_20240720
["ID","MTS","AMOUNT","RATE_DAILY","PERIOD"]
[332726307,1721484641828,-500.0,0.00016438,2]
[332726308,1721484641837,-780.24,0.00016438,2]
[332726309,1721484641847,-623.08,0.00016438,2]
[332726310,1721484641857,-500.0,0.00016438,2]
[332726311,1721484641868,-500.0,0.00016438,2]
[332726312,1721484641882,-2258.44,0.00016438,2]
[332726313,1721484641893,-1010.44,0.00016438,2]
[332726314,1721484641903,-587.43,0.00016438,2]
[332726315,1721484641916,-3220.95,0.00016438,2]
[332726316,1721484641926,-500.0,0.00016438,2]
[332726317,1721484641937,-500.0,0.00016438,2]
[332726318,1721484641948,-546.97,0.00016438,2]
[332726319,1721484641958,-3466.97,0.00016438,2]
[332726320,1721484641969,-511.37040743,0.00016438,2]
[332726321,1721484641980,-500.7278879,0.00016438,2]
[332726322,1721484641992,-503.5,0.00016438,2]
[332726323,1721484642004,-500.0,0.00016438,2]
[332726324,1721484642014,-500.0,0.00016438,2]
[332726325,1721484642024,-500.0,0.00016438,2]
[332726326,1721484642035,-413.67578848,0.00016438,2]
[332726327,1721484642047,-913.0,0.00016438,2]
[332726328,1721484642057,-500.0,0.00016438,2]
[332726329,1721484642066,-500.0,0.00016438,2]
[332726330,1721484642076,-500.0,0.00016438,2]
[332726331,1721484642086,-671.32,0.00016438,2]
[332726332,1721484642096,-554.45,0.00016438,2]
[332726333,1721484642107,-873.92,0.00016438,2]
[332726334,1721484642117,-1111.9,0.00016438,2]
[332726335,1721484642129,-500.0,0.00016438,2]
[332726336,1721484642140,-504.29336531,0.00016438,2]
[332726337,1721484642150,-500.0,0.00016438,2]
[332726338,1721484642162,-501.88657241,0.00016438,2]
[332726339,1721484642173,-502.45513774,0.00016438,2]
[332726340,1721484642183,-583.63,0.00016438,2]
[332726341,1721484642194,-502.86855471,0.00016438,2]
[332726342,1721484642203,-764.63,0.00016438,2]
[332726343,1721484642215,-500.0,0.00016438,2]
[332726344,1721484642225,-1825.28,0.00016438,2]
[332726345,1721484642236,-500.0,0.00016438,2]
[332726346,1721484642247,-1149.96,0.00016438,2]
[332726347,1721484642257,-500.0,0.00016438,2]
[332726348,1721484642268,-500.0,0.00016438,2]
[332726349,1721484642278,-500.0,0.00016438,2]
[332726350,1721484642287,-500.0,0.00016438,2]
[332726351,1721484642297,-500.0,0.00016438,2]
[332726352,1721484642307,-500.0,0.00016438,2]
[332726353,1721484642316,-500.0,0.00016438,2]
[332726354,1721484642327,-500.0,0.00016438,2]
[332726355,1721484642337,-500.0,0.00016438,2]
[332726356,1721484642347,-1197.12,0.00016438,2]
[332726357,1721484642356,-500.0,0.00016438,2]
[332726359,1721484642365,-500.0,0.00016438,2]
[332726361,1721484642376,-577.29,0.00016438,2]
[332726362,1721484642388,-587.47,0.00016438,2]
[332726363,1721484642397,-500.0,0.00016438,2]
[332726364,1721484642406,-586.69,0.00016438,2]
[332726365,1721484642416,-504.38908166,0.00016438,2]
[332726367,1721484642425,-500.0,0.00016438,2]
[332726368,1721484642434,-500.0,0.00016438,2]
[332726369,1721484642443,-500.0,0.00016438,2]
[332726370,1721484642452,-500.0,0.00016438,2]
[332726371,1721484642462,-500.0,0.00016438,2]
[332726372,1721484642472,-500.0,0.00016438,2]
[332726373,1721484642482,-500.0,0.00016438,2]
[332726374,1721484642492,-500.0,0.00016438,2]
[332726375,1721484642501,-500.0,0.00016438,2]
[332726376,1721484642512,-508.80795726,0.00016438,2]
[332726377,1721484642522,-636.52390275,0.00016438,2]
[332726378,1721484642532,-688.34,0.00016438,2]
[332726379,1721484642543,-4464.76,0.00016438,2]
[332726380,1721484642554,-500.0,0.00016438,2]
[332726381,1721484642564,-500.0,0.00016438,2]
[332726382,1721484642576,-1284.47,0.00016438,2]
[332726383,1721484642586,-1741.15,0.00016438,2]
[332726384,1721484642595,-500.0,0.00016438,2]
[332726385,1721484642607,-533.4,0.00016438,2]
[332726386,1721484642617,-1527.59,0.00016438,2]
[332726387,1721484642628,-514.32357617,0.00016438,2]
[332726388,1721484642638,-500.0,0.00016438,2]
[332726389,1721484642647,-505.54319834,0.00016438,2]
[332726390,1721484642657,-500.0,0.00016438,2]
[332726391,1721484642667,-582.28461375,0.00016438,2]
[332726392,1721484642676,-500.0,0.00016438,2]
[332726393,1721484642686,-515.12988625,0.00016438,2]
[332726395,1721484642695,-699.99,0.00016438,2]
[332726397,1721484642705,-500.0,0.00016438,2]
[332726398,1721484642714,-501.43123297,0.00016438,2]
[332726400,1721484642723,-500.0,0.00016438,2]
[332726402,1721484642733,-500.0,0.00016438,2]
[332726404,1721484642742,-500.85505249,0.00016438,2]
[332726406,1721484642751,-500.0,0.00016438,2]
[332726408,1721484642760,-706.67,0.00016438,2]
[332726409,1721484642769,-500.0,0.00016438,2]
[332726410,1721484642779,-500.0,0.00016438,2]
[332726411,1721484642788,-592.19,0.00016438,2]
[332726412,1721484642798,-500.0,0.00016438,2]
[332726413,1721484642807,-529.26846187,0.00016438,2]
[332726414,1721484642816,-500.0,0.00016438,2]
[332726415,1721484642825,-500.0,0.00016438,2]
[332726416,1721484642835,-278.260626,0.00016438,2]
[332726417,1721484642845,-278.260626,0.00016438,2]
[332726418,1721484642855,-500.87068412,0.00016438,2]
[332726419,1721484642865,-278.260626,0.00016438,2]
[332726420,1721484642875,-500.0,0.00016438,2]
[332726421,1721484642885,-278.260626,0.00016438,2]
[332726422,1721484642894,-278.260626,0.00016438,2]
[332726423,1721484642905,-278.260626,0.00016438,2]
[332726424,1721484642914,-278.260626,0.00016438,2]
[332726425,1721484642924,-517.77,0.00016438,2]
[332726426,1721484642934,-500.0,0.00016438,2]
[332726427,1721484642943,-278.260626,0.00016438,2]
[332726428,1721484642954,-278.260626,0.00016438,2]
[332726429,1721484642964,-504.76781749,0.00016438,2]
[332726430,1721484642974,-278.260626,0.00016438,2]
[332726431,1721484642985,-278.260626,0.00016438,2]
[332726432,1721484642995,-278.260626,0.00016438,2]
[332726433,1721484643005,-558.9,0.00016438,2]
[332726434,1721484643014,-278.260626,0.00016438,2]
[332726435,1721484643023,-278.260626,0.00016438,2]
[332726436,1721484643033,-500.0,0.00016438,2]
[332726437,1721484643042,-193.47418578,0.00016438,2]
[332726438,1721484643051,-500.0,0.00016438,2]
[332726439,1721484643061,-500.0,0.00016438,2]
[332726440,1721484643071,-500.0,0.00016438,2]
[332726441,1721484643080,-500.0,0.00016438,2]
[332726442,1721484643089,-500.0,0.00016438,2]
[332726443,1721484643099,-500.0,0.00016438,2]
[332726444,1721484643108,-500.0,0.00016438,2]
[332726445,1721484643118,-500.0,0.00016438,2]
[332726446,1721484643129,-500.0,0.00016438,2]
[332726447,1721484643138,-500.0,0.00016438,2]
[332726448,1721484643148,-500.0,0.00016438,2]
[332726449,1721484643157,-500.0,0.00016438,2]
[332726450,1721484643167,-993.56,0.00016438,2]
[332726451,1721484643177,-500.0,0.00016438,2]
[332726452,1721484643186,-500.0,0.00016438,2]
[332726453,1721484643196,-620.24190846,0.00016438,2]
[332726454,1721484643206,-893.45,0.00016438,2]
[332726455,1721484643216,-500.0,0.00016438,2]
[332726456,1721484643226,-500.0,0.00016438,2]
[332726457,1721484643235,-500.0,0.00016438,2]
[332726458,1721484643245,-381.21198987,0.00016438,2]
[332726459,1721484643255,-500.0,0.00016438,2]
[332726460,1721484643265,-505.46201646,0.00016438,2]
[332726461,1721484643274,-251.95448152,0.00016438,2]
[332726462,1721484643283,-500.0,0.00016438,2]
[332726463,1721484643293,-503.04863189,0.00016438,2]
[332726464,1721484643302,-500.0,0.00016438,2]
[332726465,1721484643312,-2168.29,0.00016438,2]
[332726466,1721484643322,-500.0,0.00016438,2]
[332726467,1721484643331,-501.6408417,0.00016438,2]
[332726468,1721484643340,-618.28186363,0.00016438,2]
[332726469,1721484643350,-500.0,0.00016438,2]
[332726470,1721484643360,-150.0,0.00016438,2]
[332726471,1721484643369,-500.0,0.00016438,2]
[332726472,1721484643380,-500.0,0.00016438,2]
[332726473,1721484643393,-500.0,0.00016438,2]
[332726474,1721484643402,-1850.98,0.00016438,2]
[332726475,1721484643412,-355.50504189,0.00016438,2]
[332726476,1721484643421,-898.49,0.00016438,2]
[332726477,1721484643430,-258.57234386,0.00016438,2]
[332726478,1721484643439,-1782.22,0.00016438,2]
[332726479,1721484643449,-2845.95,0.00016438,2]
[332726480,1721484643459,-500.0,0.00016438,2]
[332726481,1721484643469,-500.0,0.00016438,2]
[332726482,1721484643478,-500.0,0.00016438,2]
[332726483,1721484643487,-2305.47,0.00016438,2]
[332726484,1721484643496,-1806.43,0.00016438,2]
[332726485,1721484643505,-518.16,0.00016438,2]
[332726486,1721484643515,-500.0,0.00016438,2]
[332726487,1721484643524,-505.93712617,0.00016438,2]
[332726488,1721484643533,-500.0,0.00016438,2]
[332726489,1721484643542,-717.82,0.00016438,2]
[332726490,1721484643552,-500.0,0.00016438,2]
[332726491,1721484643560,-430.76481335,0.00016438,2]
[332726519,1721485360502,658.844812,0.00013699,2]
[332726523,1721485401096,250.0,0.0001359,2]
[332726524,1721485401374,250.0,0.00013628,2]
[332726525,1721485401572,250.0,0.00013665,2]
[332726526,1721485401791,250.0,0.00013702,2]
[332726527,1721485402032,250.0,0.00013739,2]
[332726528,1721485402274,250.0,0.00013777,2]
[332726529,1721485402478,250.0,0.00013814,2]
[332726530,1721485402915,250.0,0.00013851,2]
[332726531,1721485403129,250.0,0.00013888,2]
[332726532,1721485403369,250.0,0.00013926,2]
[332726533,1721485403557,250.0,0.00013963,2]
[332726535,1721485403794,250.0,0.00014,2]
[332726538,1721485464702,250.0,0.00014,2]
[332726539,1721485499977,609.6965354,0.00013283,2]
[332726540,1721485537948,1485.4364808,0.00013699,2]
[332726542,1721485603055,2077.8751014,0.00013699,2]
[332726547,1721485745150,-250.0,0.00014037,2]
[332726548,1721485745172,-250.0,0.00014075,2]
[332726549,1721485745195,-250.0,0.00014112,2]
[332726550,1721485745218,-250.0,0.00014149,2]
[332726551,1721485745240,-250.0,0.00014186,2]
[332726552,1721485745262,-250.0,0.00014224,2]
[332726553,1721485745283,-187.5,0.00014247,2]
[332726554,1721485745305,-250.0,0.00014261,2]
[332726555,1721485745327,-250.0,0.00014298,2]
[332726556,1721485745348,-24900.0,0.00014331,2]
[332726557,1721485745369,-4969.1524006,0.0001455,2]
[332726558,1721485745390,-2352.96397236,0.00014564,2]
[332726559,1721485745409,-250.0,0.00014664,2]
[332726567,1721485799596,501.52,0.00014698,2]
[332726568,1721485812436,750.0,0.00014247,2]
[332726569,1721485815371,2203.01362704,0.00014707,2]
[332726570,1721485815394,3500.0,0.00014707,2]
[332726571,1721485815417,3515.45,0.00014707,2]
[332726572,1721485815440,3456.19669499,0.00014707,2]
[332726623,1721485838160,-2486.50139442,0.00014707,2]
[332726625,1721485838172,-9738.83828355,0.00014707,2]
[332726626,1721485838182,-2806.6019402,0.00015646,2]
[332726628,1721485838192,-300.0,0.00015701,2]
[332726630,1721485838201,-41992.3106818,0.00015702,2]
[332726632,1721485838210,-500.0,0.00015707,2]
[332726634,1721485838220,-500.0,0.00015707,2]
[332726635,1721485838229,-410.54847794,0.00015707,2]
[332726637,1721485838239,-500.0,0.00015707,2]
[332726638,1721485838248,-420.88944288,0.00015707,2]
[332726639,1721485838258,-189.23954917,0.00015707,2]
[332726640,1721485838268,-500.0,0.00015707,2]
[332726641,1721485838277,-500.0,0.00015707,2]
[332726642,1721485838286,-500.0,0.00015707,2]
[332726643,1721485838297,-500.0,0.00015707,2]
[332726644,1721485838307,-369.74467773,0.00015707,2]
[332726645,1721485838316,-500.0,0.00015707,2]
[332726646,1721485838325,-500.0,0.00015707,2]
[332726647,1721485838334,-500.0,0.00015707,2]
[332726648,1721485838344,-500.0,0.00015707,2]
[332726649,1721485838353,-500.0,0.00015707,2]
[332726650,1721485838362,-500.0,0.00015707,2]
[332726651,1721485838372,-500.0,0.00015707,2]
[332726652,1721485838382,-500.0,0.00015707,2]
[332726653,1721485838391,-500.0,0.00015707,2]
[332726654,1721485838400,-500.0,0.00015707,2]
[332726655,1721485838409,-500.0,0.00015707,2]
[332726656,1721485838419,-500.0,0.00015707,2]
[332726657,1721485838428,-509.72389927,0.00015707,2]
[332726658,1721485838437,-500.0,0.00015707,2]
[332726659,1721485838447,-500.0,0.00015707,2]
[332726660,1721485838456,-500.0,0.00015707,2]
[332726661,1721485838465,-500.0,0.00015707,2]
[332726662,1721485838474,-500.0,0.00015707,2]
[332726663,1721485838483,-515.04909526,0.00015707,2]
[332726664,1721485838495,-500.0,0.00015707,2]
[332726665,1721485838504,-500.0,0.00015707,2]
[332726666,1721485838516,-500.0,0.00015707,2]
[332726667,1721485838526,-500.0,0.00015707,2]
[332726668,1721485838535,-500.0,0.00015707,2]
[332726669,1721485838545,-450.0,0.00015707,2]
[332726670,1721485838554,-21284.05194699,0.00015708,2]
[332726671,1721485838563,-5481.02975558,0.00015712,2]
[332726672,1721485838572,-9635.93595369,0.00015712,2]
[332726673,1721485838582,-5513.05891957,0.00015744,2]
[332726674,1721485838591,-4086.29321979,0.00015751,2]
[332726675,1721485838600,-1161.38988049,0.00015751,2]
[332726676,1721485838610,-4883.18895415,0.00015751,2]
[332726677,1721485838618,-169.031775,0.00015791,2]
[332726678,1721485838627,-169.031774,0.00015791,2]
[332726679,1721485838637,-220.424394,0.00015791,2]
[332726680,1721485838646,-2806.60194017,0.00015794,2]
[332726681,1721485838655,-41992.3106818,0.00015802,2]
[332726682,1721485838666,-2426.31493042,0.00015851,2]
[332726683,1721485838678,-4195.3609312,0.00015851,2]
[332726684,1721485838687,-2137.72573135,0.00015851,2]
[332726685,1721485838697,-2806.60194017,0.00015942,2]
[332726686,1721485838707,-2933.20475172,0.00015952,2]
[332726687,1721485838717,-2213.3379845,0.00015954,2]
[332726688,1721485838726,-41992.3106818,0.0001608,2]
[332726689,1721485838735,-2806.60194017,0.0001609,2]
[332726690,1721485838745,-1510.9940082,0.00016159,2]
[332726691,1721485838755,-2843.17391,0.00016159,2]
[332726692,1721485838765,-533.21232689,0.00016159,2]
[332726693,1721485838774,-166.666666,0.00016164,2]
[332726694,1721485838782,-169.031774,0.00016186,2]
[332726695,1721485838792,-5303.4494987,0.00016186,2]
[332726696,1721485838802,-2806.60194017,0.00016238,2]
[332726697,1721485838811,-166.4603234,0.00016273,2]
[332726698,1721485838821,-1184.1579241,0.00016302,2]
[332726699,1721485838830,-41992.3106818,0.00016308,2]
[332726700,1721485838839,-287.3476314,0.00016309,2]
[332726701,1721485838848,-156.17588773,0.00016309,2]
[332726702,1721485838858,-251.31725499,0.00016309,2]
[332726703,1721485838867,-48470.86099382,0.00016318,2]
[332726704,1721485838876,-41992.3106818,0.00016318,2]
[332726705,1721485838885,-1742.367565,0.00016328,2]
[332726706,1721485838895,-155.05188196,0.00016347,2]
[332726707,1721485838906,-504.0,0.00016348,2]
[332726708,1721485838915,-319.84040016,0.00016356,2]
[332726709,1721485838924,-23249.83328164,0.0001638,2]
[332726721,1721485840440,-982.09965539,0.00016159,2]
[332726722,1721485840450,-18742.47740016,0.0001638,2]
[332726723,1721485840460,-41992.3106818,0.0001639,2]
[332726724,1721485840470,-171118.24298218,0.000164,5]
[332726725,1721485840480,-20883.854833,0.000164,5]
[332726726,1721485840490,-2899.30423513,0.000164,2]
[332726727,1721485840499,-1500.0,0.000164,2]
[332726728,1721485840508,-1500.0,0.000164,2]
[332726729,1721485840519,-1500.0,0.000164,2]
[332726730,1721485840529,-1409.61,0.000164,2]
[332726731,1721485840540,-250694.64617489,0.000164,2]
[332726732,1721485840550,-51565.69560921,0.0001642,2]
[332726733,1721485840559,-500.0,0.00016438,2]
[332726734,1721485840569,-287.92979717,0.00016438,2]
[332726735,1721485840579,-7519.14402006,0.00016438,2]
[332726736,1721485840588,-500.0,0.00016438,2]
[332726737,1721485840598,-500.3265989,0.00016438,2]
[332726738,1721485840608,-500.90625531,0.00016438,2]
[332726739,1721485840619,-500.0,0.00016438,2]
[332726740,1721485840629,-500.0,0.00016438,2]
[332726741,1721485840638,-893.48,0.00016438,2]
[332726742,1721485840648,-500.0,0.00016438,2]
[332726743,1721485840658,-500.0,0.00016438,2]
[332726744,1721485840668,-518.49437446,0.00016438,2]
[332726745,1721485840677,-500.0,0.00016438,2]
[332726746,1721485840688,-500.0,0.00016438,2]
[332726747,1721485840697,-500.0,0.00016438,2]
[332726748,1721485840707,-502.26881878,0.00016438,2]
[332726749,1721485840716,-614.81,0.00016438,2]
[332726750,1721485840727,-500.0,0.00016438,2]
[332726751,1721485840737,-500.0,0.00016438,2]
[332726752,1721485840748,-503.08189526,0.00016438,2]
[332726753,1721485840758,-500.0,0.00016438,2]
[332726754,1721485840769,-511.37040743,0.00016438,2]
[332726755,1721485840778,-503.5,0.00016438,2]
[332726756,1721485840788,-500.0,0.00016438,2]
[332726757,1721485840797,-500.0,0.00016438,2]
[332726758,1721485840807,-856.4,0.00016438,2]
[332726759,1721485840816,-934.76,0.00016438,2]
[332726760,1721485840826,-500.0,0.00016438,2]
[332726761,1721485840837,-503.25317507,0.00016438,2]
[332726762,1721485840846,-780.24,0.00016438,2]
[332726763,1721485840856,-1010.44,0.00016438,2]
[332726764,1721485840865,-500.0,0.00016438,2]
[332726765,1721485840875,-994.0,0.00016438,2]
[332726766,1721485840885,-500.0,0.00016438,2]
[332726767,1721485840895,-500.7278879,0.00016438,2]
[332726768,1721485840909,-500.0,0.00016438,2]
[332726769,1721485840921,-500.0,0.00016438,2]
[332726770,1721485840930,-500.0,0.00016438,2]
[332726771,1721485840940,-500.0,0.00016438,2]
[332726772,1721485840950,-671.32,0.00016438,2]
[332726773,1721485840960,-413.67578848,0.00016438,2]
[332726774,1721485840971,-500.0,0.00016438,2]
[332726775,1721485840981,-501.88657241,0.00016438,2]
[332726776,1721485840993,-502.86855471,0.00016438,2]
[332726777,1721485841005,-500.0,0.00016438,2]
[332726778,1721485841015,-500.0,0.00016438,2]
[332726779,1721485841025,-500.0,0.00016438,2]
[332726780,1721485841035,-500.0,0.00016438,2]
[332726781,1721485841046,-500.0,0.00016438,2]
[332726782,1721485841055,-500.0,0.00016438,2]
[332726783,1721485841067,-500.0,0.00016438,2]
[332726784,1721485841077,-500.0,0.00016438,2]
[332726785,1721485841087,-1149.96,0.00016438,2]
[332726786,1721485841097,-500.0,0.00016438,2]
[332726787,1721485841107,-500.0,0.00016438,2]
[332726788,1721485841117,-500.0,0.00016438,2]
[332726789,1721485841126,-500.0,0.00016438,2]
[332726790,1721485841135,-502.45513774,0.00016438,2]
[332726791,1721485841144,-500.0,0.00016438,2]
[332726792,1721485841153,-500.0,0.00016438,2]
[332726793,1721485841163,-503.55316172,0.00016438,2]
[332726794,1721485841172,-508.09394379,0.00016438,2]
[332726795,1721485841182,-500.0,0.00016438,2]
[332726796,1721485841191,-500.0,0.00016438,2]
[332726797,1721485841201,-501.64253833,0.00016438,2]
[332726798,1721485841210,-500.0,0.00016438,2]
[332726799,1721485841220,-152.0,0.00016438,2]
[332726800,1721485841229,-500.0,0.00016438,2]
[332726801,1721485841239,-500.0,0.00016438,2]
[332726802,1721485841249,-508.80795726,0.00016438,2]
[332726803,1721485841258,-699.99,0.00016438,2]
[332726804,1721485841267,-636.52390275,0.00016438,2]
[332726805,1721485841277,-500.0,0.00016438,2]
[332726806,1721485841287,-500.0,0.00016438,2]
[332726807,1721485841298,-500.0,0.00016438,2]
[332726808,1721485841308,-500.0,0.00016438,2]
[332726809,1721485841318,-592.19,0.00016438,2]
[332726810,1721485841327,-533.4,0.00016438,2]
[332726811,1721485841337,-500.0,0.00016438,2]
[332726812,1721485841347,-500.0,0.00016438,2]
[332726813,1721485841357,-529.26846187,0.00016438,2]
[332726814,1721485841368,-500.0,0.00016438,2]
[332726815,1721485841378,-500.0,0.00016438,2]
[332726816,1721485841390,-500.0,0.00016438,2]
[332726817,1721485841401,-505.46201646,0.00016438,2]
[332726818,1721485841412,-500.0,0.00016438,2]
[332726819,1721485841423,-500.0,0.00016438,2]
[332726820,1721485841434,-706.67,0.00016438,2]
[332726821,1721485841446,-150.0,0.00016438,2]
[332726822,1721485841456,-500.0,0.00016438,2]
[332726823,1721485841466,-500.0,0.00016438,2]
[332726824,1721485841476,-524.82,0.00016438,2]
[332726825,1721485841485,-500.0,0.00016438,2]
[332726826,1721485841495,-618.28186363,0.00016438,2]
[332726827,1721485841504,-500.0,0.00016438,2]
[332726828,1721485841514,-381.21198987,0.00016438,2]
[332726829,1721485841523,-536.99,0.00016438,2]
[332726830,1721485841533,-355.50504189,0.00016438,2]
[332726831,1721485841544,-504.76781749,0.00016438,2]
[332726832,1721485841553,-993.56,0.00016438,2]
[332726833,1721485841563,-193.47418578,0.00016438,2]
[332726834,1721485841573,-500.0,0.00016438,2]
[332726835,1721485841583,-500.0,0.00016438,2]
[332726836,1721485841592,-500.0,0.00016438,2]
[332726837,1721485841602,-500.0,0.00016438,2]
[332726838,1721485841611,-500.0,0.00016438,2]
[332726839,1721485841620,-500.0,0.00016438,2]
[332726840,1721485841629,-500.0,0.00016438,2]
[332726841,1721485841638,-500.0,0.00016438,2]
[332726842,1721485841648,-1327.1,0.00016438,2]
[332726843,1721485841657,-500.0,0.00016438,2]
[332726844,1721485841666,-500.0,0.00016438,2]
[332726845,1721485841877,-500.0,0.00016438,2]
[332726846,1721485841890,-500.0,0.00016438,2]
[332726847,1721485841900,-500.0,0.00016438,2]
[332726848,1721485841913,-500.0,0.00016438,2]
[332726849,1721485841922,-620.24190846,0.00016438,2]
[332726850,1721485841932,-251.95448152,0.00016438,2]
[332726851,1721485841941,-685.01,0.00016438,2]
[332726852,1721485841952,-500.0,0.00016438,2]
[332726853,1721485841961,-507.61720522,0.00016438,2]
[332726854,1721485841970,-500.0,0.00016438,2]
[332726855,1721485841981,-500.0,0.00016438,2]
[332726856,1721485841990,-525.35,0.00016438,2]
[332726857,1721485842000,-516.37,0.00016438,2]
[332726858,1721485842009,-500.0,0.00016438,2]
[332726859,1721485842019,-258.57234386,0.00016438,2]
[332726860,1721485842028,-716.9,0.00016438,2]
[332726861,1721485842037,-570.5,0.00016438,2]
[332726862,1721485842046,-592.94,0.00016438,2]
[332726863,1721485842056,-609.52367989,0.00016438,2]
[332726864,1721485842065,-500.0,0.00016438,2]
[332726865,1721485842075,-500.0,0.00016438,2]
[332726866,1721485842084,-500.0,0.00016438,2]
[332726867,1721485842093,-500.0,0.00016438,2]
[332726868,1721485842102,-500.00008718,0.00016438,2]
[332726869,1721485842111,-500.0,0.00016438,2]
[332726870,1721485842120,-606.79,0.00016438,2]
[332726871,1721485842129,-151.12419647,0.00016438,2]
[332726872,1721485842138,-500.0,0.00016438,2]
[332726873,1721485842147,-414.21224949,0.00016438,2]
[332726874,1721485842156,-500.0,0.00016438,2]
[332726875,1721485842164,-847.93,0.00016438,2]
[332726876,1721485842174,-3466.97,0.00016438,2]
[332726877,1721485842183,-504.29336531,0.00016438,2]
[332726878,1721485842192,-500.0,0.00016438,2]
[332726879,1721485842202,-500.0,0.00016438,2]
[332726880,1721485842211,-500.0,0.00016438,2]
[332726881,1721485842220,-500.0,0.00016438,2]
[332726882,1721485842229,-519.33,0.00016438,2]
[332726883,1721485842239,-913.0,0.00016438,2]
[332726884,1721485842248,-2383.15,0.00016438,2]
[332726885,1721485842258,-500.0,0.00016438,2]
[332726886,1721485842267,-500.0,0.00016438,2]
[332726887,1721485842277,-1092.97,0.00016438,2]
[332726888,1721485842286,-500.0,0.00016438,2]
[332726889,1721485842296,-639.57,0.00016438,2]
[332726890,1721485842305,-502.60980733,0.00016438,2]
[332726891,1721485842314,-502.42225169,0.00016438,2]
[332726892,1721485842324,-510.61609016,0.00016438,2]
[332726893,1721485842333,-640.3,0.00016438,2]
[332726894,1721485842342,-564.55397441,0.00016438,2]
[332726895,1721485842351,-563.05,0.00016438,2]
[332726896,1721485842360,-500.0,0.00016438,2]
[332726897,1721485842370,-193.22353054,0.00016438,2]
[332726898,1721485842379,-525.96507878,0.00016438,2]
[332726899,1721485842388,-500.0,0.00016438,2]
[332726900,1721485842397,-500.0,0.00016438,2]
[332726901,1721485842406,-941.01,0.00016438,2]
[332726902,1721485842415,-506.27059481,0.00016438,2]
[332726903,1721485842425,-500.97603392,0.00016438,2]
[332726904,1721485842435,-500.0,0.00016438,2]
[332726905,1721485842444,-500.0,0.00016438,2]
[332726906,1721485842453,-1841.29,0.00016438,2]
[332726907,1721485842463,-500.0,0.00016438,2]
[332726908,1721485842472,-798.08,0.00016438,2]
[332726909,1721485842482,-500.0,0.00016438,2]
[332726910,1721485842491,-500.0,0.00016438,2]
[332726911,1721485842501,-500.0,0.00016438,2]
[332726912,1721485842510,-500.0,0.00016438,2]
[332726913,1721485842519,-500.0,0.00016438,2]
[332726914,1721485842528,-500.0,0.00016438,2]
[332726915,1721485842537,-500.0,0.00016438,2]
[332726916,1721485842548,-500.0,0.00016438,2]
[332726917,1721485842558,-1690.69,0.00016438,2]
[332726918,1721485842568,-500.0,0.00016438,2]
[332726919,1721485842578,-688.34,0.00016438,2]
[332726920,1721485842588,-500.0,0.00016438,2]
[332726921,1721485842597,-500.0,0.00016438,2]
[332726922,1721485842607,-500.0,0.00016438,2]
[332726923,1721485842617,-3220.95,0.00016438,2]
[332726924,1721485842626,-503.24791271,0.00016438,2]
[332726925,1721485842636,-715.07,0.00016438,2]
[332726926,1721485842646,-787.65,0.00016438,2]
[332726927,1721485842655,-514.32357617,0.00016438,2]
[332726928,1721485842664,-505.54319834,0.00016438,2]